fUST/lending_fUST_20250620
["ID","MTS","AMOUNT","RATE_DAILY","PERIOD"]
[366653720,1750377044285,-707.0,0.00024893,2]
[366653722,1750377044294,-72804.21223318,0.000249,7]
[366653896,1750377046074,-600.0,0.00021917,6]
[366653898,1750377046084,-187.17,0.0002223,10]
[366653900,1750377046094,-2753.79507175,0.000249,7]
[366654293,1750377559405,162.970948,0.00013699,2]
[366654295,1750377706382,1000.0,0.00025147,60]
[366654296,1750377739615,1000.53,0.00025147,60]
[366654297,1750377748218,395.51213909,0.000239,120]
[366654298,1750377748271,104.48786091,0.000239,120]
[366654299,1750377749039,500.0,0.000239,120]
[366654300,1750377749801,500.0,0.000239,120]
[366654301,1750377750577,500.0,0.000239,120]
[366654302,1750377751396,500.0,0.000239,120]
[366654303,1750377752161,500.0,0.000239,120]
[366654304,1750377752953,500.0,0.000239,120]
[366654305,1750377753861,500.0,0.000239,120]
[366654306,1750377754643,500.0,0.000239,120]
[366654307,1750377755402,500.0,0.000239,120]
[366654308,1750377756159,500.0,0.000239,120]
[366654309,1750377756995,500.0,0.000239,120]
[366654310,1750377757676,500.0,0.000239,120]
[366654311,1750377758449,500.0,0.000239,120]
[366654312,1750377759226,500.0,0.000239,120]
[366654313,1750377759992,500.0,0.000239,120]
[366654314,1750377760748,500.0,0.000239,120]
[366654315,1750377761517,500.0,0.000239,120]
[366654316,1750377762289,500.0,0.000239,120]
[366654317,1750377763059,500.0,0.000239,120]
[366654318,1750377764279,500.0,0.000239,120]
[366654319,1750377765061,500.0,0.000239,120]
[366654320,1750377765855,500.0,0.000239,120]
[366654321,1750377766636,500.0,0.000239,120]
[366654322,1750377767448,500.0,0.000239,120]
[366654323,1750377768281,500.0,0.000239,120]
[366654324,1750377769039,500.0,0.000239,120]
[366654325,1750377769813,500.0,0.000239,120]
[366654326,1750377770586,500.0,0.000239,120]
[366654327,1750377771367,500.0,0.000239,120]
[366654328,1750377772140,500.0,0.000239,120]
[366654329,1750377772943,500.0,0.000239,120]
[366654330,1750377773680,500.0,0.000239,120]
[366654331,1750377774461,500.0,0.000239,120]
[366654332,1750377775223,500.0,0.000239,120]
[366654333,1750377776026,500.0,0.000239,120]
[366654334,1750377776791,500.0,0.000239,120]
[366654335,1750377777659,500.0,0.000239,120]
[366654336,1750377778330,500.0,0.000239,120]
[366654337,1750377779093,500.0,0.000239,120]
[366654338,1750377779861,500.0,0.000239,120]
[366654339,1750377781076,500.0,0.000239,120]
[366654340,1750377782026,500.0,0.000239,120]
[366654341,1750377782805,500.0,0.000239,120]
[366654342,1750377783590,500.0,0.000239,120]
[366654343,1750377784398,500.0,0.000239,120]
[366654344,1750377785200,500.0,0.000239,120]
[366654345,1750377785981,500.0,0.000239,120]
[366654346,1750377786756,500.0,0.000239,120]
[366654347,1750377787588,500.0,0.000239,120]
[366654348,1750377788408,500.0,0.000239,120]
[366654349,1750377789193,500.0,0.000239,120]
[366654350,1750377789966,500.0,0.000239,120]
[366654351,1750377790751,500.0,0.000239,120]
[366654352,1750377791529,500.0,0.000239,120]
[366654353,1750377792291,500.0,0.000239,120]
[366654354,1750377793065,500.0,0.000239,120]
[366654355,1750377793851,500.0,0.000239,120]
[366654356,1750377794625,500.0,0.000239,120]
[366654357,1750377795394,500.0,0.000239,120]
[366654358,1750377796170,500.0,0.000239,120]
[366654359,1750377796939,500.0,0.000239,120]
[366654360,1750377797706,500.0,0.000239,120]
[366654361,1750377798566,500.0,0.000239,120]
[366654362,1750377799351,500.0,0.000239,120]
[366654363,1750377800114,500.0,0.000239,120]
[366654364,1750377800880,500.0,0.000239,120]
[366654365,1750377801641,500.0,0.000239,120]
[366654366,1750377802406,500.0,0.000239,120]
[366654367,1750377803189,500.0,0.000239,120]
[366654368,1750377804050,500.0,0.000239,120]
[366654369,1750377804837,500.0,0.000239,120]
[366654370,1750377805599,500.0,0.000239,120]
[366654371,1750377806377,500.0,0.000239,120]
[366654372,1750377807193,577.73,0.000239,120]
[366654373,1750377811308,200.0,0.0002385,120]
[366654374,1750377832628,5000.0,0.000202,2]
[366654375,1750377871677,200.0,0.00023796,120]
[366654377,1750377932659,200.0,0.00024209,120]
[366654378,1750377945754,6420.0,0.000202,2]
[366654380,1750378051326,200.0,0.00024536,120]
[366654381,1750378111152,200.0,0.00023951,120]
[366654385,1750378231103,200.0,0.00024211,120]
[366654417,1750378232322,-160.0,0.00021,2]
[366654419,1750378232332,-500.0,0.00021064,2]
[366654420,1750378232342,-237.78311024,0.00021412,2]
[366654422,1750378232351,-300.0,0.00021717,2]
[366654424,1750378232360,-376.16036758,0.00021718,2]
[366654426,1750378232370,-300.0,0.00021772,2]
[366654428,1750378232379,-281.0,0.00021772,2]
[366654430,1750378232389,-500.0,0.00021773,2]
[366654432,1750378232398,-500.0,0.00021773,2]
[366654434,1750378232408,-500.0,0.00021773,2]
[366654436,1750378232417,-453.10103406,0.00021773,2]
[366654438,1750378232430,-500.0,0.00021773,2]
[366654440,1750378232439,-423.56454981,0.00021773,2]
[366654442,1750378232452,-500.0,0.00021773,2]
[366654444,1750378232462,-233.86000249,0.00021773,2]
[366654446,1750378232471,-500.0,0.00021773,2]
[366654448,1750378232481,-500.0,0.00021773,2]
[366654450,1750378232490,-542.24254494,0.00021773,2]
[366654452,1750378232499,-232.5,0.00021773,2]
[366654453,1750378232510,-500.0,0.00021773,2]
[366654455,1750378232520,-500.0,0.00021773,2]
[366654457,1750378232530,-500.0,0.00021773,2]
[366654459,1750378232540,-500.0,0.00021773,2]
[366654461,1750378232550,-398.8295,0.00021773,2]
[366654462,1750378232561,-500.0,0.00021773,2]
[366654463,1750378232571,-500.0,0.00021773,2]
[366654464,1750378232580,-500.0,0.00021773,2]
[366654465,1750378232590,-446.46973032,0.00021773,2]
[366654466,1750378232599,-160.43570871,0.00021773,2]
[366654467,1750378232610,-160.0,0.00021774,2]
[366654468,1750378232619,-160.0,0.00021774,2]
[366654469,1750378232629,-12544.68530873,0.00021774,2]
[366654470,1750378232639,-213.47708638,0.00021782,2]
[366654471,1750378232648,-230.0259007,0.00021782,2]
[366654472,1750378232658,-160.0,0.00021782,2]
[366654473,1750378232668,-160.0,0.00021784,2]
[366654474,1750378232678,-424.78309573,0.00021784,2]
[366654475,1750378232690,-836.1357872,0.00021784,2]
[366654476,1750378232701,-845.93775772,0.00021784,2]
[366654477,1750378232712,-160.0,0.00021784,2]
[366654478,1750378232722,-820.53,0.00021819,2]
[366654479,1750378232731,-168.208,0.000219,2]
[366654480,1750378232740,-979.50680134,0.000219,6]
[366654481,1750378232750,-499.42417389,0.00021916,2]
[366654482,1750378232759,-460.0,0.00021917,6]
[366654483,1750378232769,-460.0,0.00021917,2]
[366654484,1750378232779,-460.0,0.00021917,6]
[366654485,1750378232788,-460.0,0.00021917,6]
[366654486,1750378232798,-296.68,0.00021917,6]
[366654487,1750378232808,-161.84963626,0.00021917,6]
[366654488,1750378232818,-460.0,0.00021917,6]
[366654489,1750378232827,-460.0,0.00021917,6]
[366654490,1750378232838,-234.04568638,0.00021917,6]
[366654491,1750378232853,-225.95431362,0.00021917,6]
[366654492,1750378232862,-36.6492562,0.00021917,6]
[366654493,1750378232875,-423.3507438,0.00021917,6]
[366654494,1750378232885,-460.0,0.00021917,6]
[366654495,1750378232894,-460.0,0.00021917,6]
[366654496,1750378232904,-472.56,0.00021917,6]
[366654497,1750378232914,-460.0,0.00021917,6]
[366654498,1750378232924,-460.0,0.00021917,6]
[366654499,1750378232934,-215.24,0.00021917,6]
[366654500,1750378232944,-2020.76,0.00021917,6]
[366654501,1750378232954,-219.72,0.00021917,6]
[366654502,1750378232964,-460.0,0.00021917,6]
[366654503,1750378232975,-514.45069459,0.00021917,6]
[366654504,1750378232984,-256.14684753,0.00021917,6]
[366654505,1750378232994,-460.0,0.00021917,6]
[366654506,1750378233004,-460.0,0.00021917,6]
[366654507,1750378233013,-460.0,0.00021917,6]
[366654508,1750378233023,-460.0,0.00021917,6]
[366654509,1750378233033,-460.0,0.00021917,6]
[366654510,1750378233043,-468.8,0.00021917,6]
[366654511,1750378233052,-460.0,0.00021917,6]
[366654512,1750378233062,-460.0,0.00021917,6]
[366654513,1750378233072,-460.0,0.00021917,6]
[366654514,1750378233084,-460.0,0.00021917,6]
[366654515,1750378233094,-460.0,0.00021917,6]
[366654516,1750378233104,-506.88,0.00021917,6]
[366654517,1750378233113,-460.0,0.00021917,6]
[366654518,1750378233123,-460.0,0.00021917,6]
[366654519,1750378233133,-460.0,0.00021917,6]
[366654520,1750378233143,-460.0,0.00021917,6]
[366654521,1750378233152,-460.0,0.00021917,6]
[366654522,1750378233162,-460.0,0.00021917,6]
[366654523,1750378233172,-460.0,0.00021917,6]
[366654524,1750378233181,-162.970948,0.00021918,2]
[366654525,1750378233191,-500.0,0.00021957,2]
[366654526,1750378233200,-151.0,0.00022,7]
[366654527,1750378233210,-17017.12858467,0.00022,2]
[366654528,1750378233237,-12756.11324567,0.00022,2]
[366654539,1750378238138,-460.0,0.00021917,6]
[366654540,1750378238149,-460.0,0.00021917,2]
[366654541,1750378238160,-11783.90552761,0.00022,2]
[366654542,1750378238170,-169.0,0.00022,2]
[366654543,1750378238179,-979.50680129,0.00022038,6]
[366654544,1750378238189,-500.0,0.00022054,2]
[366654545,1750378238199,-500.0,0.00022113,2]
[366654546,1750378238209,-500.0,0.00022119,2]
[366654547,1750378238219,-979.50680129,0.00022176,6]
[366654548,1750378238229,-103244.385,0.00022187,2]
[366654549,1750378238239,-500.0,0.0002219,2]
[366654550,1750378238249,-460.0,0.00022191,6]
[366654551,1750378238258,-460.0,0.00022191,6]
[366654552,1750378238269,-460.0,0.00022191,6]
[366654553,1750378238279,-460.0,0.00022191,6]
[366654554,1750378238288,-460.0,0.00022191,6]
[366654555,1750378238298,-460.0,0.00022191,6]
[366654556,1750378238307,-285.04,0.00022191,6]
[366654557,1750378238318,-460.0,0.00022191,6]
[366654558,1750378238327,-2020.76,0.00022191,6]
[366654559,1750378238338,-460.0,0.00022191,6]
[366654560,1750378238348,-460.0,0.00022191,6]
[366654561,1750378238357,-460.0,0.00022191,6]
[366654562,1750378238367,-460.0,0.00022191,6]
[366654563,1750378238376,-460.0,0.00022191,6]
[366654564,1750378238386,-460.0,0.00022191,6]
[366654565,1750378238396,-460.0,0.00022191,6]
[366654566,1750378238405,-460.0,0.00022191,6]
[366654567,1750378238415,-460.0,0.00022191,6]
[366654568,1750378238424,-473.88,0.00022191,6]
[366654569,1750378238434,-460.0,0.00022191,6]
[366654570,1750378238447,-460.0,0.00022191,6]
[366654571,1750378238457,-460.0,0.00022191,6]
[366654572,1750378238467,-460.0,0.00022191,2]
[366654573,1750378238476,-3000.0,0.000222,2]
[366654574,1750378238487,-3000.0,0.0002221,2]
[366654575,1750378238497,-3000.0,0.0002222,2]
[366654576,1750378238506,-160.0,0.00022225,2]
[366654577,1750378238517,-3000.0,0.0002223,2]
[366654578,1750378238527,-3000.0,0.0002224,2]
[366654579,1750378238537,-3000.0,0.0002225,2]
[366654580,1750378238547,-3000.0,0.0002226,2]
[366654581,1750378238557,-3000.0,0.0002227,2]
[366654582,1750378238567,-3000.0,0.0002228,2]
[366654583,1750378238576,-3190.167489,0.0002229,2]
[366654584,1750378238587,-839.32,0.000223,7]
[366654585,1750378238596,-187.50666068,0.00022306,2]
[366654586,1750378238607,-979.50680129,0.00022314,7]
[366654587,1750378238616,-979.50680129,0.00022452,7]
[366654588,1750378238626,-369.97,0.00022455,3]
[366654589,1750378238635,-184.98,0.00022455,3]
[366654590,1750378238645,-554.99,0.00022455,3]
[366654591,1750378238659,-460.0,0.00022465,6]
[366654592,1750378238669,-460.0,0.00022465,6]
[366654593,1750378238679,-608.46,0.00022465,6]
[366654594,1750378238689,-460.0,0.00022465,6]
[366654595,1750378238699,-460.0,0.00022465,6]
[366654596,1750378238709,-460.0,0.00022465,6]
[366654597,1750378238718,-2020.76,0.00022465,6]
[366654598,1750378238728,-460.0,0.00022465,6]
[366654599,1750378238737,-460.0,0.00022465,6]
[366654600,1750378238919,-460.0,0.00022465,6]
[366654601,1750378238930,-460.0,0.00022465,6]
[366654602,1750378238940,-460.0,0.00022465,6]
[366654603,1750378238950,-460.0,0.00022465,6]
[366654604,1750378238960,-460.0,0.00022465,6]
[366654605,1750378238970,-460.0,0.00022465,6]
[366654606,1750378238980,-460.0,0.00022465,2]
[366654607,1750378238990,-979.50680129,0.0002259,7]
[366654608,1750378239000,-1000.0,0.00022667,2]
[366654609,1750378239010,-979.50680129,0.00022728,7]
[366654610,1750378239020,-500.0,0.00022738,2]
[366654611,1750378239030,-460.0,0.00022739,6]
[366654612,1750378239040,-460.0,0.00022739,6]
[366654613,1750378239050,-460.0,0.00022739,6]
[366654614,1750378239060,-460.0,0.00022739,6]
[366654615,1750378239069,-460.0,0.00022739,6]
[366654616,1750378239079,-2020.76,0.00022739,6]
[366654617,1750378239088,-460.0,0.00022739,6]
[366654618,1750378239098,-460.0,0.00022739,6]
[366654619,1750378239108,-460.0,0.00022739,6]
[366654620,1750378239118,-460.0,0.00022739,6]
[366654621,1750378239128,-460.0,0.00022739,6]
[366654622,1750378239139,-460.0,0.00022739,6]
[366654623,1750378239148,-460.0,0.00022739,6]
[366654624,1750378239158,-603.16992526,0.00022739,6]
[366654625,1750378239168,-460.0,0.00022739,2]
[366654626,1750378239178,-979.50680129,0.00022866,8]
[366654627,1750378239187,-1050.440186,0.00022938,2]
[366654628,1750378239197,-1050.440186,0.00022938,2]
[366654629,1750378239207,-151.0,0.00022938,7]
[366654630,1750378239217,-5000.0,0.00022938,2]
[366654631,1750378239229,-1469.15159077,0.00022938,2]
[366654632,1750378239238,-500.0,0.00022938,2]
[366654633,1750378239248,-500.0,0.00022938,2]
[366654634,1750378239257,-500.0,0.00022938,2]
[366654635,1750378239267,-500.0,0.00022938,2]
[366654636,1750378239276,-500.0,0.00022938,2]
[366654637,1750378239286,-207.4,0.00022938,2]
[366654638,1750378239295,-500.0,0.00022938,2]
[366654639,1750378239304,-500.0,0.00022938,2]
[366654640,1750378239315,-500.0,0.00022938,2]
[366654641,1750378239324,-500.0,0.00022938,2]
[366654642,1750378239334,-500.0,0.00022938,2]
[366654643,1750378239345,-500.0,0.00022938,2]
[366654644,1750378239355,-500.0,0.00022938,2]
[366654645,1750378239365,-500.0,0.00022938,2]
[366654646,1750378239374,-500.0,0.00022938,2]
[366654647,1750378239384,-500.0,0.00022938,2]
[366654648,1750378239393,-151.0,0.00022938,2]
[366654649,1750378239403,-156.40916373,0.00022938,2]
[366654650,1750378239413,-25000.0,0.00022938,2]
[366654651,1750378239423,-1042.82386827,0.00022938,2]
[366654652,1750378239433,-509.19,0.00023,2]
[366654653,1750378239445,-979.50680129,0.00023003,8]
[366654654,1750378239454,-460.0,0.00023013,6]
[366654655,1750378239464,-460.0,0.00023013,6]
[366654656,1750378239474,-460.0,0.00023013,6]
[366654657,1750378239484,-511.4222625,0.00023013,6]
[366654658,1750378239493,-460.0,0.00023013,6]
[366654659,1750378239503,-2020.76,0.00023013,6]
[366654660,1750378239513,-251.01899682,0.00023013,6]
[366654661,1750378239522,-460.0,0.00023013,6]
[366654662,1750378239533,-460.0,0.00023013,6]
[366654663,1750378239542,-460.0,0.00023013,6]
[366654664,1750378239552,-460.0,0.00023013,6]
[366654665,1750378239561,-460.0,0.00023013,6]
[366654666,1750378239571,-979.50680129,0.00023141,8]
[366654667,1750378239581,-1500.0,0.00023215,2]
[366654668,1750378239591,-168.0,0.00023236,2]
[366654669,1750378239601,-228.05372286,0.00023256,2]
[366654670,1750378239611,-979.50680129,0.00023279,8]
[366654671,1750378239620,-500.0,0.00023286,2]
[366654672,1750378239630,-460.0,0.00023287,6]
[366654673,1750378239639,-460.0,0.00023287,6]
[366654674,1750378239651,-460.0,0.00023287,6]
[366654675,1750378239660,-460.0,0.00023287,6]
[366654676,1750378239672,-2020.76,0.00023287,6]
[366654677,1750378239683,-460.0,0.00023287,6]
[366654678,1750378239695,-407.14,0.00023287,6]
[366654679,1750378239707,-460.0,0.00023287,6]
[366654680,1750378239717,-387.78,0.00023287,6]
[366654681,1750378239727,-460.0,0.00023287,6]
[366654682,1750378239737,-168.0,0.00023336,2]
[366654683,1750378239748,-500.0,0.0002334,2]
[366654684,1750378239758,-500.0,0.0002334,2]
[366654685,1750378239767,-979.50680129,0.00023417,9]
[366654686,1750378239779,-500.0,0.00023453,2]
[366654687,1750378239789,-168.0,0.00023473,2]
[366654688,1750378239801,-839.32,0.000235,7]
[366654689,1750378239810,-406.0,0.00023552,2]
[366654690,1750378239820,-979.50680129,0.00023555,9]
[366654691,1750378239830,-460.0,0.00023561,6]
[366654692,1750378239840,-460.0,0.00023561,6]
[366654693,1750378239851,-460.0,0.00023561,6]
[366654694,1750378239860,-460.0,0.00023561,6]
[366654695,1750378239871,-2020.76,0.00023561,6]
[366654696,1750378239881,-460.0,0.00023561,6]
[366654697,1750378239891,-460.0,0.00023561,6]
[366654698,1750378239901,-277.8,0.00023561,6]
[366654699,1750378239911,-420.0,0.00023606,2]
[366654700,1750378239921,-500.0,0.00023612,2]
[366654701,1750378239931,-420.0,0.00023664,2]
[366654702,1750378239940,-156.1317593,0.00023671,2]
[366654703,1750378239950,-979.50680129,0.00023693,9]
[366654704,1750378239960,-500.0,0.00023736,2]
[366654705,1750378239970,-997.99531911,0.00023763,2]
[366654706,1750378239980,-1641.07,0.00023802,2]
[366654707,1750378239990,-739.94,0.00023825,3]
[366654708,1750378239999,-369.96,0.00023825,3]
[366654709,1750378240009,-979.50680129,0.00023831,10]
[366654710,1750378240019,-500.0,0.00023834,2]
[366654711,1750378240029,-562.59550903,0.00023835,6]
[366654712,1750378240039,-460.0,0.00023835,6]
[366654713,1750378240048,-460.0,0.00023835,6]
[366654714,1750378240059,-460.0,0.00023835,6]
[366654715,1750378240068,-2020.76,0.00023835,6]
[366654716,1750378240078,-538.84,0.00023835,6]
[366654717,1750378240088,-460.0,0.00023835,6]
[366654718,1750378240097,-370.64,0.00023863,2]
[366654719,1750378240107,-500.0,0.00023887,2]
[366654720,1750378240117,-500.0,0.00023888,2]
[366654721,1750378240127,-2000.0,0.0002389,7]
[366654722,1750378240138,-2000.0,0.0002389,7]
[366654723,1750378240149,-2000.0,0.0002389,7]
[366654724,1750378240159,-2000.0,0.0002389,7]
[366654725,1750378240169,-235.21646079,0.0002389,7]
[366654726,1750378240181,-213.47708638,0.0002389,7]
[366654727,1750378240191,-168.0,0.00023891,2]
[366654728,1750378240202,-503.2118004,0.000239,2]
[366654729,1750378240213,-240.91048382,0.000239,2]
[366654730,1750378240224,-500.0,0.00023917,2]
[366654731,1750378240235,-500.0,0.00023917,2]
[366654732,1750378240244,-500.0,0.00023917,2]
[366654733,1750378240255,-500.0,0.00023917,2]
[366654734,1750378240264,-500.0,0.00023917,2]
[366654736,1750378240274,-536.80640207,0.00023917,2]
[366654737,1750378240284,-500.0,0.00023917,2]
[366654738,1750378240294,-500.0,0.00023917,2]
[366654740,1750378240303,-500.0,0.00023917,2]
[366654741,1750378240313,-500.0,0.00023917,2]
[366654743,1750378240323,-500.0,0.00023917,2]
[366654744,1750378240333,-168.0,0.00023957,2]
[366654746,1750378240343,-979.50680129,0.00023969,10]
[366654747,1750378240353,-500.0,0.00023971,2]
[366654748,1750378240363,-156.1317593,0.00023973,2]
[366654750,1750378240373,-162.34237938,0.00023973,2]
[366654751,1750378240382,-500.0,0.00023989,2]
[366654753,1750378240392,-500.0,0.00023989,2]
[366654754,1750378240401,-506.00183821,0.00023989,2]
[366654755,1750378240412,-500.0,0.00023989,2]
[366654757,1750378240423,-500.0,0.00023989,2]
[366654758,1750378240432,-500.0,0.00023989,2]
[366654760,1750378240445,-500.0,0.00023989,2]
[366654761,1750378240455,-500.0,0.00023989,2]
[366654763,1750378240466,-501.61478119,0.00023989,2]
[366654764,1750378240476,-500.0,0.00023989,2]
[366654766,1750378240486,-500.0,0.00023989,2]
[366654767,1750378240495,-500.0,0.00023989,2]
[366654768,1750378240505,-600.0,0.00023989,2]
[366654770,1750378240516,-500.0,0.00023989,2]
[366654772,1750378240526,-500.0,0.00023989,2]
[366654773,1750378240536,-500.0,0.00023989,2]
[366654775,1750378240546,-503.33767011,0.00023989,2]
[366654776,1750378240555,-500.0,0.00023992,2]
[366654778,1750378240565,-836.1357872,0.00024,7]
[366654779,1750378240574,-500.0,0.00024018,2]
[366654781,1750378240584,-500.0,0.00024085,2]
[366654782,1750378240594,-500.0,0.00024091,2]
[366654784,1750378240604,-979.50680129,0.00024107,10]
[366654785,1750378240614,-460.0,0.00024109,6]
[366654786,1750378240624,-460.0,0.00024109,6]
[366654787,1750378240633,-460.0,0.00024109,6]
[366654788,1750378240643,-2020.76,0.00024109,6]
[366654790,1750378240652,-460.0,0.00024109,6]
[366654791,1750378240662,-500.0,0.0002411,2]
[366654792,1750378240671,-500.0,0.00024147,2]
[366654794,1750378240682,-500.0,0.00024147,2]
[366654795,1750378240691,-500.0,0.00024168,2]
[366654797,1750378240701,-730.9591362,0.00024192,2]
[366654798,1750378240711,-500.0,0.00024194,2]
[366654799,1750378240720,-2200.0,0.00024233,2]
[366654801,1750378240730,-979.50680129,0.00024245,10]
[366654802,1750378240740,-500.0,0.00024256,2]
[366654804,1750378240749,-168.0,0.00024257,2]
[366654805,1750378240759,-500.0,0.00024268,2]
[366654806,1750378240768,-215.0738,0.00024307,2]
[366654808,1750378240778,-459.1516927,0.00024329,2]
[366654809,1750378240788,-306.0,0.00024329,2]
[366654811,1750378240798,-176.2005054,0.00024329,2]
[366654812,1750378240807,-573.4653004,0.00024329,2]
[366654813,1750378240817,-168.0,0.00024339,2]
[366654815,1750378240826,-168.0,0.00024369,2]
[366654816,1750378240836,-500.0,0.00024382,2]
[366654818,1750378240846,-979.50680129,0.00024383,11]
[366654819,1750378240856,-460.0,0.00024383,6]
[366654821,1750378240866,-460.0,0.00024383,6]
[366654822,1750378240877,-460.0,0.00024383,6]
[366654824,1750378240887,-2020.76,0.00024383,6]
[366654825,1750378240896,-460.0,0.00024383,6]
[366654827,1750378240906,-500.0,0.0002439,2]
[366654828,1750378240916,-1308.980658,0.00024395,3]
[366654830,1750378240925,-1000.0,0.00024465,2]
[366654831,1750378240935,-1000.0,0.00024465,2]
[366654833,1750378240945,-1000.0,0.00024465,2]
[366654835,1750378240955,-502.43041222,0.00024465,2]
[366654836,1750378240965,-500.0,0.00024469,2]
[366654837,1750378240975,-979.50680129,0.00024521,11]
[366654839,1750378240986,-1000.0,0.00024537,2]
[366654840,1750378240996,-1000.0,0.00024537,2]
[366654842,1750378241006,-1000.0,0.00024537,2]
[366654843,1750378241015,-1000.0,0.00024537,2]
[366654844,1750378241025,-1200.0,0.00024537,2]
[366654845,1750378241035,-603.65051825,0.00024537,2]
[366654847,1750378241044,-1000.0,0.00024537,2]
[366654848,1750378241054,-151.0,0.000246,9]
[366654850,1750378241064,-151.0,0.00024657,7]
[366654851,1750378241074,-2020.76,0.00024657,6]
[366654853,1750378241083,-460.0,0.00024657,6]
[366654854,1750378241093,-446.02989486,0.00024658,2]
[366654856,1750378241103,-500.0,0.00024658,2]
[366654857,1750378241113,-979.50680129,0.00024659,11]
[366654859,1750378241122,-1050.440186,0.00024659,2]
[366654860,1750378241132,-1050.440186,0.00024659,2]
[366654862,1750378241142,-151.0,0.00024659,7]
[366654863,1750378241151,-500.0,0.00024685,2]
[366654865,1750378241161,-839.32,0.000247,7]
[366654866,1750378241171,-151.0,0.000247,7]
[366654868,1750378241180,-500.0,0.00024713,2]
[366654869,1750378241190,-500.0,0.0002474,2]
[366654871,1750378241199,-200.0,0.00024745,120]
[366654872,1750378241210,-500.0,0.00024763,2]
[366654874,1750378241219,-500.0,0.00024768,2]
[366654875,1750378241228,-500.0,0.00024795,2]
[366654877,1750378241238,-979.50680129,0.00024797,11]
[366654878,1750378241247,-2000.0,0.000248,2]
[366654880,1750378241258,-2000.0,0.000248,2]
[366654881,1750378241267,-2000.0,0.000248,2]
[366654883,1750378241277,-2012.14,0.000248,30]
[366654884,1750378241287,-1029.2,0.000248,2]
[366654886,1750378241297,-166.73694563,0.000248,2]
[366654888,1750378241307,-729.812895,0.000248,2]
[366654889,1750378241317,-13771.8745205,0.000248,2]
[366654891,1750378241326,-168.0,0.00024822,2]
[366654892,1750378241336,-500.0,0.00024822,2]
[366654894,1750378241345,-500.0,0.0002485,2]
[366654895,1750378241355,-159.08,0.0002486,120]
[366654897,1750378241366,-150.5,0.0002486,120]
[366654898,1750378241375,-2295.31242008,0.00024863,2]
[366654900,1750378241384,-200.0,0.00024866,120]
[366654901,1750378241394,-150.5,0.0002487,120]
[366654903,1750378241404,-150.5,0.0002487,120]
[366654904,1750378241413,-500.0,0.00024873,2]
[366654906,1750378241423,-500.91748917,0.00024873,2]
[366654907,1750378241432,-500.01625406,0.00024873,2]
[366654909,1750378241445,-419.05263805,0.00024873,2]
[366654911,1750378241454,-500.0,0.00024873,2]